{"text_format":"1","workbook":"xlsx","n_sheets":2,"sheets":["חיפוש תוכנות","טבלת נתונים א"],"not_rendered":{"charts":0,"images":1,"macros":0,"external_links":0,"defined_names":59,"comments":0,"pivot_tables":0},"unopened":[],"bounds":{"document_bytes":16777216,"sheet_cells":100000,"rows_first":2000,"rows_last":500,"rows_between":2000,"halvings":0,"cell_chars":16384,"cell_head_chars":4096},"cells_cut":0,"cells_raw":0,"read":"whole","date_system":"1900"}

{"sheet":"חיפוש תוכנות","index":0,"n_rows":68,"n_cols":23,"rows_kept":68,"cut":false,"hidden":false,"merged":[[31,13,36,14],[34,9,34,11],[30,0,44,0],[30,9,31,11],[0,0,0,8],[0,12,0,14],[0,9,0,11],[1,0,1,14],[4,0,27,0],[9,5,12,6]]}
["       מצאי תוכנות קומה א'",null,null,null,null,null,null,null,null,"מעודכן לתאריך :",null,null,{"$f":"Date","v":"28/11/2017"}]
[{"$f":"INDEX(T2:T38,S2)","v":"Populus 5.3"},null,null,null,null,null,null,null,null,null,null,null,null,null,null,null,"בחר/י תוכנה ",null,9,"Office 2016","lib1-2-1",{"$f":"OR(AND(תכנה=Office_2010,'טבלת נתונים א'!B3=\"+\"),OR(AND(תכנה=Spss_19,'טבלת נתונים א'!C3=\"+\"),OR(AND(תכנה=Babylon,'טבלת נתונים א'!D3=\"+\"),,OR(AND(תכנה=unstable_aquarium,'טבלת נתונים א'!E3=\"+\"),OR(AND(תכנה=kidney,'טבלת נתונים א'!F3=\"+\"),OR(AND(תכנה=Mandelbrot_Set,'טבלת נתונים א'!G3=\"+\"),OR(AND(תכנה=particles,'טבלת נתונים א'!H3=\"+\"),OR(AND(תכנה=motion_simulator,'טבלת נתונים א'!I3=\"+\"),OR(AND(תכנה=comunication_powerpoint,'טבלת נתונים א'!J3=\"+\"),,OR(AND(תכנה=CHASHMALON,'טבלת נתונים א'!K3=\"+\"),OR(AND(תכנה=flowers,'טבלת נתונים א'!L3=\"+\"),OR(AND(תכנה=Action_potential,'טבלת נתונים א'!M3=\"+\"),OR(AND(תכנה=Db_lab,'טבלת נתונים א'!N3=\"+\"),OR(AND(תכנה=Populus_5.3,'טבלת נתונים א'!O3=\"+\"),OR(AND(תכנה=Post_syneptic,'טבלת נתונים א'!P3=\"+\"),OR(AND(תכנה=Eclipse,'טבלת נתונים א'!Q3=\"+\"),OR(AND(תכנה=Molecular_Biology,'טבלת נתונים א'!R3=\"+\"),OR(AND(תכנה=Skygazer,'טבלת נתונים א'!S3=\"+\"),OR(AND(תכנה=Tree_View,'טבלת נתונים א'!T3=\"+\"),OR(AND(תכנה=Xray,'טבלת נתונים א'!U3=\"+\"),OR(AND(תכנה=Google_Earth,'טבלת נתונים א'!V3=\"+\"),OR(AND(תכנה=Game_Maker,'טבלת נתונים א'!W3=\"+\"),OR(AND(תכנה=GreenFoot,'טבלת נתונים א'!X3=\"+\"),OR(AND(תכנה=CLC_Sequence_Viewer,'טבלת נתונים א'!Y3=\"+\"),OR(AND(תכנה=MEGA_4,'טבלת נתונים א'!Z3=\"+\"),OR(AND(תכנה=Chimera,'טבלת נתונים א'!AA3=\"+\")))))))))))))))))))))))))))","v":false}]
[null,null,null,null,null,null,null,null,null,null,null,null,null,null,null,null,null,null,null,"Spss 24","lib1-3-1",{"$f":"OR(AND(תכנה=Office_2010,'טבלת נתונים א'!B5=\"+\"),OR(AND(תכנה=Spss_19,'טבלת נתונים א'!C5=\"+\"),OR(AND(תכנה=Babylon,'טבלת נתונים א'!D5=\"+\"),,OR(AND(תכנה=unstable_aquarium,'טבלת נתונים א'!E5=\"+\"),OR(AND(תכנה=kidney,'טבלת נתונים א'!F5=\"+\"),OR(AND(תכנה=Mandelbrot_Set,'טבלת נתונים א'!G5=\"+\"),OR(AND(תכנה=particles,'טבלת נתונים א'!H5=\"+\"),OR(AND(תכנה=motion_simulator,'טבלת נתונים א'!I5=\"+\"),OR(AND(תכנה=comunication_powerpoint,'טבלת נתונים א'!J5=\"+\"),,OR(AND(תכנה=CHASHMALON,'טבלת נתונים א'!K5=\"+\"),OR(AND(תכנה=flowers,'טבלת נתונים א'!L5=\"+\"),OR(AND(תכנה=Action_potential,'טבלת נתונים א'!M5=\"+\"),OR(AND(תכנה=Db_lab,'טבלת נתונים א'!N5=\"+\"),OR(AND(תכנה=Populus_5.3,'טבלת נתונים א'!O5=\"+\"),OR(AND(תכנה=Post_syneptic,'טבלת נתונים א'!P5=\"+\"),OR(AND(תכנה=Eclipse,'טבלת נתונים א'!Q5=\"+\"),OR(AND(תכנה=Molecular_Biology,'טבלת נתונים א'!R5=\"+\"),OR(AND(תכנה=Skygazer,'טבלת נתונים א'!S5=\"+\"),OR(AND(תכנה=Tree_View,'טבלת נתונים א'!T5=\"+\"),OR(AND(תכנה=Xray,'טבלת נתונים א'!U5=\"+\"),OR(AND(תכנה=Google_Earth,'טבלת נתונים א'!V5=\"+\"),OR(AND(תכנה=Game_Maker,'טבלת נתונים א'!W5=\"+\"),OR(AND(תכנה=GreenFoot,'טבלת נתונים א'!X5=\"+\"),OR(AND(תכנה=CLC_Sequence_Viewer,'טבלת נתונים א'!Y5=\"+\"),OR(AND(תכנה=MEGA_4,'טבלת נתונים א'!Z5=\"+\"),OR(AND(תכנה=Chimera,'טבלת נתונים א'!AA5=\"+\")))))))))))))))))))))))))))","v":false}]
[null,null,null,null,null,null,null,null,null,null,null,null,null,null,null,null,null,null,null,"ביולוגיה מולקולארית","lib1-3-2",{"$f":"OR(AND(תכנה=Office_2010,'טבלת נתונים א'!B6=\"+\"),OR(AND(תכנה=Spss_19,'טבלת נתונים א'!C6=\"+\"),OR(AND(תכנה=Babylon,'טבלת נתונים א'!D6=\"+\"),,OR(AND(תכנה=unstable_aquarium,'טבלת נתונים א'!E6=\"+\"),OR(AND(תכנה=kidney,'טבלת נתונים א'!F6=\"+\"),OR(AND(תכנה=Mandelbrot_Set,'טבלת נתונים א'!G6=\"+\"),OR(AND(תכנה=particles,'טבלת נתונים א'!H6=\"+\"),OR(AND(תכנה=motion_simulator,'טבלת נתונים א'!I6=\"+\"),OR(AND(תכנה=comunication_powerpoint,'טבלת נתונים א'!J6=\"+\"),,OR(AND(תכנה=CHASHMALON,'טבלת נתונים א'!K6=\"+\"),OR(AND(תכנה=flowers,'טבלת נתונים א'!L6=\"+\"),OR(AND(תכנה=Action_potential,'טבלת נתונים א'!M6=\"+\"),OR(AND(תכנה=Db_lab,'טבלת נתונים א'!N6=\"+\"),OR(AND(תכנה=Populus_5.3,'טבלת נתונים א'!O6=\"+\"),OR(AND(תכנה=Post_syneptic,'טבלת נתונים א'!P6=\"+\"),OR(AND(תכנה=Eclipse,'טבלת נתונים א'!Q6=\"+\"),OR(AND(תכנה=Molecular_Biology,'טבלת נתונים א'!R6=\"+\"),OR(AND(תכנה=Skygazer,'טבלת נתונים א'!S6=\"+\"),OR(AND(תכנה=Tree_View,'טבלת נתונים א'!T6=\"+\"),OR(AND(תכנה=Xray,'טבלת נתונים א'!U6=\"+\"),OR(AND(תכנה=Google_Earth,'טבלת נתונים א'!V6=\"+\"),OR(AND(תכנה=Game_Maker,'טבלת נתונים א'!W6=\"+\"),OR(AND(תכנה=GreenFoot,'טבלת נתונים א'!X6=\"+\"),OR(AND(תכנה=CLC_Sequence_Viewer,'טבלת נתונים א'!Y6=\"+\"),OR(AND(תכנה=MEGA_4,'טבלת נתונים א'!Z6=\"+\"),OR(AND(תכנה=Chimera,'טבלת נתונים א'!AA6=\"+\")))))))))))))))))))))))))))","v":false}]
["האגף הצפוני",null,"שלחן","שלחן",null,null,null,null,"שלחן","שלחן","שלחן","מיקרופיש","מיקרופיש","שלחן","שלחן",null,"מתוך רשימה",null,null,"הכליה","lib1-3-4",{"$f":"OR(AND(תכנה=Office_2010,'טבלת נתונים א'!B8=\"+\"),OR(AND(תכנה=Spss_19,'טבלת נתונים א'!C8=\"+\"),OR(AND(תכנה=Babylon,'טבלת נתונים א'!D8=\"+\"),,OR(AND(תכנה=unstable_aquarium,'טבלת נתונים א'!E8=\"+\"),OR(AND(תכנה=kidney,'טבלת נתונים א'!F8=\"+\"),OR(AND(תכנה=Mandelbrot_Set,'טבלת נתונים א'!G8=\"+\"),OR(AND(תכנה=particles,'טבלת נתונים א'!H8=\"+\"),OR(AND(תכנה=motion_simulator,'טבלת נתונים א'!I8=\"+\"),OR(AND(תכנה=comunication_powerpoint,'טבלת נתונים א'!J8=\"+\"),OR(AND(תכנה=CHASHMALON,'טבלת נתונים א'!K8=\"+\"),OR(AND(תכנה=flowers,'טבלת נתונים א'!L8=\"+\"),OR(AND(תכנה=Action_potential,'טבלת נתונים א'!M8=\"+\"),OR(AND(תכנה=Db_lab,'טבלת נתונים א'!N8=\"+\"),OR(AND(תכנה=Populus_5.3,'טבלת נתונים א'!O8=\"+\"),OR(AND(תכנה=Post_syneptic,'טבלת נתונים א'!P8=\"+\"),OR(AND(תכנה=Eclipse,'טבלת נתונים א'!Q8=\"+\"),OR(AND(תכנה=Molecular_Biology,'טבלת נתונים א'!R8=\"+\"),OR(AND(תכנה=Skygazer,'טבלת נתונים א'!S8=\"+\"),OR(AND(תכנה=Tree_View,'טבלת נתונים א'!T8=\"+\"),OR(AND(תכנה=Xray,'טבלת נתונים א'!U8=\"+\"),OR(AND(תכנה=Google_Earth,'טבלת נתונים א'!V8=\"+\"),OR(AND(תכנה=Game_Maker,'טבלת נתונים א'!W8=\"+\"),OR(AND(תכנה=GreenFoot,'טבלת נתונים א'!X8=\"+\"),OR(AND(תכנה=CLC_Sequence_Viewer,'טבלת נתונים א'!Y8=\"+\"),OR(AND(תכנה=MEGA_4,'טבלת נתונים א'!Z8=\"+\"),OR(AND(תכנה=Chimera,'טבלת נתונים א'!AA8=\"+\")))))))))))))))))))))))))))","v":false}]
[null,null,null,null,null,null,null,null,null,null,null,null,null,null,null,null,null,null,null,"הסט של מנדלברויט","lib1-3-5",{"$f":"OR(AND(תכנה=Office_2010,'טבלת נתונים א'!B9=\"+\"),OR(AND(תכנה=Spss_19,'טבלת נתונים א'!C9=\"+\"),OR(AND(תכנה=Babylon,'טבלת נתונים א'!D9=\"+\"),,OR(AND(תכנה=unstable_aquarium,'טבלת נתונים א'!E9=\"+\"),OR(AND(תכנה=kidney,'טבלת נתונים א'!F9=\"+\"),OR(AND(תכנה=Mandelbrot_Set,'טבלת נתונים א'!G9=\"+\"),OR(AND(תכנה=particles,'טבלת נתונים א'!H9=\"+\"),OR(AND(תכנה=motion_simulator,'טבלת נתונים א'!I9=\"+\"),OR(AND(תכנה=comunication_powerpoint,'טבלת נתונים א'!J9=\"+\"),OR(AND(תכנה=CHASHMALON,'טבלת נתונים א'!K9=\"+\"),OR(AND(תכנה=flowers,'טבלת נתונים א'!L9=\"+\"),OR(AND(תכנה=Action_potential,'טבלת נתונים א'!M9=\"+\"),OR(AND(תכנה=Db_lab,'טבלת נתונים א'!N9=\"+\"),OR(AND(תכנה=Populus_5.3,'טבלת נתונים א'!O9=\"+\"),OR(AND(תכנה=Post_syneptic,'טבלת נתונים א'!P9=\"+\"),OR(AND(תכנה=Eclipse,'טבלת נתונים א'!Q9=\"+\"),OR(AND(תכנה=Molecular_Biology,'טבלת נתונים א'!R9=\"+\"),OR(AND(תכנה=Skygazer,'טבלת נתונים א'!S9=\"+\"),OR(AND(תכנה=Tree_View,'טבלת נתונים א'!T9=\"+\"),OR(AND(תכנה=Xray,'טבלת נתונים א'!U9=\"+\"),OR(AND(תכנה=Google_Earth,'טבלת נתונים א'!V9=\"+\"),OR(AND(תכנה=Game_Maker,'טבלת נתונים א'!W9=\"+\"),OR(AND(תכנה=GreenFoot,'טבלת נתונים א'!X9=\"+\"),OR(AND(תכנה=CLC_Sequence_Viewer,'טבלת נתונים א'!Y9=\"+\"),OR(AND(תכנה=MEGA_4,'טבלת נתונים א'!Z9=\"+\"),OR(AND(תכנה=Chimera,'טבלת נתונים א'!AA9=\"+\")))))))))))))))))))))))))))","v":false}]
[null,null,"שלחן","שלחן",null,null,null,null,"lib1-2-1","שלחן","שלחן","שלחן","שלחן","שלחן","שלחן",null,null,null,null,"מדמה תנועה","lib1-4-0",{"$f":"OR(AND(תכנה=Office_2010,'טבלת נתונים א'!B10=\"+\"),OR(AND(תכנה=Spss_19,'טבלת נתונים א'!C10=\"+\"),OR(AND(תכנה=Babylon,'טבלת נתונים א'!D10=\"+\"),,OR(AND(תכנה=unstable_aquarium,'טבלת נתונים א'!E10=\"+\"),OR(AND(תכנה=kidney,'טבלת נתונים א'!F10=\"+\"),OR(AND(תכנה=Mandelbrot_Set,'טבלת נתונים א'!G8=\"+\"),OR(AND(תכנה=particles,'טבלת נתונים א'!H8=\"+\"),OR(AND(תכנה=motion_simulator,'טבלת נתונים א'!I10=\"+\"),OR(AND(תכנה=comunication_powerpoint,'טבלת נתונים א'!J10=\"+\"),,OR(AND(תכנה=CHASHMALON,'טבלת נתונים א'!K10=\"+\"),OR(AND(תכנה=flowers,'טבלת נתונים א'!L10=\"+\"),OR(AND(תכנה=Action_potential,'טבלת נתונים א'!M8=\"+\"),OR(AND(תכנה=Db_lab,'טבלת נתונים א'!N10=\"+\"),OR(AND(תכנה=Populus_5.3,'טבלת נתונים א'!O10=\"+\"),OR(AND(תכנה=Post_syneptic,'טבלת נתונים א'!P10=\"+\"),OR(AND(תכנה=Eclipse,'טבלת נתונים א'!Q10=\"+\"),OR(AND(תכנה=Molecular_Biology,'טבלת נתונים א'!R10=\"+\"),OR(AND(תכנה=Skygazer,'טבלת נתונים א'!S10=\"+\"),OR(AND(תכנה=Tree_View,'טבלת נתונים א'!T10=\"+\"),OR(AND(תכנה=Xray,'טבלת נתונים א'!U10=\"+\"),OR(AND(תכנה=Google_Earth,'טבלת נתונים א'!V10=\"+\"),OR(AND(תכנה=Game_Maker,'טבלת נתונים א'!W10=\"+\"),OR(AND(תכנה=GreenFoot,'טבלת נתונים א'!X10=\"+\"),OR(AND(תכנה=CLC_Sequence_Viewer,'טבלת נתונים א'!Y10=\"+\"),OR(AND(תכנה=MEGA_4,'טבלת נתונים א'!Z10=\"+\"),OR(AND(תכנה=Chimera,'טבלת נתונים א'!AA10=\"+\")))))))))))))))))))))))))))","v":true}]
[null,null,null,null,null,null,null,null,null,null,null,null,null,null,null,null,null,null,null,"חשמלון","lib1-4-1",{"$f":"OR(AND(תכנה=Office_2010,'טבלת נתונים א'!B11=\"+\"),OR(AND(תכנה=Spss_19,'טבלת נתונים א'!C11=\"+\"),OR(AND(תכנה=Babylon,'טבלת נתונים א'!D11=\"+\"),,OR(AND(תכנה=unstable_aquarium,'טבלת נתונים א'!E11=\"+\"),OR(AND(תכנה=kidney,'טבלת נתונים א'!F11=\"+\"),OR(AND(תכנה=Mandelbrot_Set,'טבלת נתונים א'!G9=\"+\"),OR(AND(תכנה=particles,'טבלת נתונים א'!H9=\"+\"),OR(AND(תכנה=motion_simulator,'טבלת נתונים א'!I11=\"+\"),OR(AND(תכנה=comunication_powerpoint,'טבלת נתונים א'!J11=\"+\"),,OR(AND(תכנה=CHASHMALON,'טבלת נתונים א'!K11=\"+\"),OR(AND(תכנה=flowers,'טבלת נתונים א'!L11=\"+\"),OR(AND(תכנה=Action_potential,'טבלת נתונים א'!M9=\"+\"),OR(AND(תכנה=Db_lab,'טבלת נתונים א'!N11=\"+\"),OR(AND(תכנה=Populus_5.3,'טבלת נתונים א'!O11=\"+\"),OR(AND(תכנה=Post_syneptic,'טבלת נתונים א'!P11=\"+\"),OR(AND(תכנה=Eclipse,'טבלת נתונים א'!Q11=\"+\"),OR(AND(תכנה=Molecular_Biology,'טבלת נתונים א'!R11=\"+\"),OR(AND(תכנה=Skygazer,'טבלת נתונים א'!S11=\"+\"),OR(AND(תכנה=Tree_View,'טבלת נתונים א'!T11=\"+\"),OR(AND(תכנה=Xray,'טבלת נתונים א'!U11=\"+\"),OR(AND(תכנה=Google_Earth,'טבלת נתונים א'!V11=\"+\"),OR(AND(תכנה=Game_Maker,'טבלת נתונים א'!W11=\"+\"),OR(AND(תכנה=GreenFoot,'טבלת נתונים א'!X11=\"+\"),OR(AND(תכנה=CLC_Sequence_Viewer,'טבלת נתונים א'!Y11=\"+\"),OR(AND(תכנה=MEGA_4,'טבלת נתונים א'!Z11=\"+\"),OR(AND(תכנה=Chimera,'טבלת נתונים א'!AA11=\"+\")))))))))))))))))))))))))))","v":false}]
[null,null,null,null,null,null,null,null,"lib1-3-1","lib1-3-2","שלחן","lib1-3-4","lib1_3_5","שלחן","שלחן",null,null,null,null,"Action potential","lib1-4-2",{"$f":"OR(AND(תכנה=Office_2010,'טבלת נתונים א'!B12=\"+\"),OR(AND(תכנה=Spss_19,'טבלת נתונים א'!C12=\"+\"),OR(AND(תכנה=Babylon,'טבלת נתונים א'!D12=\"+\"),,OR(AND(תכנה=unstable_aquarium,'טבלת נתונים א'!E12=\"+\"),OR(AND(תכנה=kidney,'טבלת נתונים א'!F12=\"+\"),OR(AND(תכנה=Mandelbrot_Set,'טבלת נתונים א'!G10=\"+\"),OR(AND(תכנה=particles,'טבלת נתונים א'!H10=\"+\"),OR(AND(תכנה=motion_simulator,'טבלת נתונים א'!I12=\"+\"),OR(AND(תכנה=comunication_powerpoint,'טבלת נתונים א'!J12=\"+\"),,OR(AND(תכנה=CHASHMALON,'טבלת נתונים א'!K12=\"+\"),OR(AND(תכנה=flowers,'טבלת נתונים א'!L12=\"+\"),OR(AND(תכנה=Action_potential,'טבלת נתונים א'!M10=\"+\"),OR(AND(תכנה=Db_lab,'טבלת נתונים א'!N12=\"+\"),OR(AND(תכנה=Populus_5.3,'טבלת נתונים א'!O12=\"+\"),OR(AND(תכנה=Post_syneptic,'טבלת נתונים א'!P12=\"+\"),OR(AND(תכנה=Eclipse,'טבלת נתונים א'!Q12=\"+\"),OR(AND(תכנה=Molecular_Biology,'טבלת נתונים א'!R12=\"+\"),OR(AND(תכנה=Skygazer,'טבלת נתונים א'!S12=\"+\"),OR(AND(תכנה=Tree_View,'טבלת נתונים א'!T12=\"+\"),OR(AND(תכנה=Xray,'טבלת נתונים א'!U12=\"+\"),OR(AND(תכנה=Google_Earth,'טבלת נתונים א'!V12=\"+\"),OR(AND(תכנה=Game_Maker,'טבלת נתונים א'!W12=\"+\"),OR(AND(תכנה=GreenFoot,'טבלת נתונים א'!X12=\"+\"),OR(AND(תכנה=CLC_Sequence_Viewer,'טבלת נתונים א'!Y12=\"+\"),OR(AND(תכנה=MEGA_4,'טבלת נתונים א'!Z12=\"+\"),OR(AND(תכנה=Chimera,'טבלת נתונים א'!AA12=\"+\")))))))))))))))))))))))))))","v":false}]
[null,null,"שלחן","שלחן",null,"מחלקת יעץ",null,null,null,null,null,null,null,null,null,null,null,null,null,"Populus 5.3","lib1-4-4",{"$f":"OR(AND(תכנה=Office_2010,'טבלת נתונים א'!B14=\"+\"),OR(AND(תכנה=Spss_19,'טבלת נתונים א'!C14=\"+\"),OR(AND(תכנה=Babylon,'טבלת נתונים א'!D14=\"+\"),,OR(AND(תכנה=unstable_aquarium,'טבלת נתונים א'!E14=\"+\"),OR(AND(תכנה=kidney,'טבלת נתונים א'!F14=\"+\"),OR(AND(תכנה=Mandelbrot_Set,'טבלת נתונים א'!G14=\"+\"),OR(AND(תכנה=particles,'טבלת נתונים א'!H14=\"+\"),OR(AND(תכנה=motion_simulator,'טבלת נתונים א'!I14=\"+\"),OR(AND(תכנה=comunication_powerpoint,'טבלת נתונים א'!J14=\"+\"),,OR(AND(תכנה=CHASHMALON,'טבלת נתונים א'!K14=\"+\"),OR(AND(תכנה=flowers,'טבלת נתונים א'!L14=\"+\"),OR(AND(תכנה=Action_potential,'טבלת נתונים א'!M14=\"+\"),OR(AND(תכנה=Db_lab,'טבלת נתונים א'!N14=\"+\"),OR(AND(תכנה=Populus_5.3,'טבלת נתונים א'!O14=\"+\"),OR(AND(תכנה=Post_syneptic,'טבלת נתונים א'!P14=\"+\"),OR(AND(תכנה=Eclipse,'טבלת נתונים א'!Q14=\"+\"),OR(AND(תכנה=Molecular_Biology,'טבלת נתונים א'!R14=\"+\"),OR(AND(תכנה=Skygazer,'טבלת נתונים א'!S14=\"+\"),OR(AND(תכנה=Tree_View,'טבלת נתונים א'!T14=\"+\"),OR(AND(תכנה=Xray,'טבלת נתונים א'!U14=\"+\"),OR(AND(תכנה=Google_Earth,'טבלת נתונים א'!V14=\"+\"),OR(AND(תכנה=Game_Maker,'טבלת נתונים א'!W14=\"+\"),OR(AND(תכנה=GreenFoot,'טבלת נתונים א'!X14=\"+\"),OR(AND(תכנה=CLC_Sequence_Viewer,'טבלת נתונים א'!Y14=\"+\"),OR(AND(תכנה=MEGA_4,'טבלת נתונים א'!Z14=\"+\"),OR(AND(תכנה=Chimera,'טבלת נתונים א'!AA14=\"+\")))))))))))))))))))))))))))","v":false}]
[null,null,null,null,null,null,null,null,"lib1-4-1","lib1-4-2","שלחן","lib1-4-4","lib1-4-5","שלחן","שלחן",null,null,null,null,"Post-syneptic","lib1-4-5",{"$f":"OR(AND(תכנה=Office_2010,'טבלת נתונים א'!B15=\"+\"),OR(AND(תכנה=Spss_19,'טבלת נתונים א'!C15=\"+\"),OR(AND(תכנה=Babylon,'טבלת נתונים א'!D15=\"+\"),,OR(AND(תכנה=unstable_aquarium,'טבלת נתונים א'!E15=\"+\"),OR(AND(תכנה=kidney,'טבלת נתונים א'!F15=\"+\"),OR(AND(תכנה=Mandelbrot_Set,'טבלת נתונים א'!G15=\"+\"),OR(AND(תכנה=particles,'טבלת נתונים א'!H15=\"+\"),OR(AND(תכנה=motion_simulator,'טבלת נתונים א'!I15=\"+\"),OR(AND(תכנה=comunication_powerpoint,'טבלת נתונים א'!J15=\"+\"),,OR(AND(תכנה=CHASHMALON,'טבלת נתונים א'!K15=\"+\"),OR(AND(תכנה=flowers,'טבלת נתונים א'!L15=\"+\"),OR(AND(תכנה=Action_potential,'טבלת נתונים א'!M15=\"+\"),OR(AND(תכנה=Db_lab,'טבלת נתונים א'!N15=\"+\"),OR(AND(תכנה=Populus_5.3,'טבלת נתונים א'!O15=\"+\"),OR(AND(תכנה=Post_syneptic,'טבלת נתונים א'!P15=\"+\"),OR(AND(תכנה=Eclipse,'טבלת נתונים א'!Q15=\"+\"),OR(AND(תכנה=Molecular_Biology,'טבלת נתונים א'!R15=\"+\"),OR(AND(תכנה=Skygazer,'טבלת נתונים א'!S15=\"+\"),OR(AND(תכנה=Tree_View,'טבלת נתונים א'!T15=\"+\"),OR(AND(תכנה=Xray,'טבלת נתונים א'!U15=\"+\"),OR(AND(תכנה=Google_Earth,'טבלת נתונים א'!V15=\"+\"),OR(AND(תכנה=Game_Maker,'טבלת נתונים א'!W15=\"+\"),OR(AND(תכנה=GreenFoot,'טבלת נתונים א'!X15=\"+\"),OR(AND(תכנה=CLC_Sequence_Viewer,'טבלת נתונים א'!Y15=\"+\"),OR(AND(תכנה=MEGA_4,'טבלת נתונים א'!Z15=\"+\"),OR(AND(תכנה=Chimera,'טבלת נתונים א'!AA15=\"+\")))))))))))))))))))))))))))","v":false}]
[null,null,"שלחן","שלחן",null,null,null,null,null,null,null,null,null,null,null,null,null,null,null,"Eclipse-Java","lib1-5-0",{"$f":"OR(AND(תכנה=Office_2010,'טבלת נתונים א'!B16=\"+\"),OR(AND(תכנה=Spss_19,'טבלת נתונים א'!C16=\"+\"),OR(AND(תכנה=Babylon,'טבלת נתונים א'!D16=\"+\"),,OR(AND(תכנה=unstable_aquarium,'טבלת נתונים א'!E16=\"+\"),OR(AND(תכנה=kidney,'טבלת נתונים א'!F16=\"+\"),OR(AND(תכנה=Mandelbrot_Set,'טבלת נתונים א'!G16=\"+\"),OR(AND(תכנה=particles,'טבלת נתונים א'!H16=\"+\"),OR(AND(תכנה=motion_simulator,'טבלת נתונים א'!I16=\"+\"),OR(AND(תכנה=comunication_powerpoint,'טבלת נתונים א'!J16=\"+\"),,OR(AND(תכנה=CHASHMALON,'טבלת נתונים א'!K16=\"+\"),OR(AND(תכנה=flowers,'טבלת נתונים א'!L16=\"+\"),OR(AND(תכנה=Action_potential,'טבלת נתונים א'!M16=\"+\"),OR(AND(תכנה=Db_lab,'טבלת נתונים א'!N16=\"+\"),OR(AND(תכנה=Populus_5.3,'טבלת נתונים א'!O16=\"+\"),OR(AND(תכנה=Post_syneptic,'טבלת נתונים א'!P16=\"+\"),OR(AND(תכנה=Eclipse,'טבלת נתונים א'!Q16=\"+\"),OR(AND(תכנה=Molecular_Biology,'טבלת נתונים א'!R16=\"+\"),OR(AND(תכנה=Skygazer,'טבלת נתונים א'!S16=\"+\"),OR(AND(תכנה=Tree_View,'טבלת נתונים א'!T16=\"+\"),OR(AND(תכנה=Xray,'טבלת נתונים א'!U16=\"+\"),OR(AND(תכנה=Google_Earth,'טבלת נתונים א'!V16=\"+\"),OR(AND(תכנה=Game_Maker,'טבלת נתונים א'!W16=\"+\"),OR(AND(תכנה=GreenFoot,'טבלת נתונים א'!X16=\"+\"),OR(AND(תכנה=CLC_Sequence_Viewer,'טבלת נתונים א'!Y16=\"+\"),OR(AND(תכנה=MEGA_4,'טבלת נתונים א'!Z16=\"+\"),OR(AND(תכנה=Chimera,'טבלת נתונים א'!AA16=\"+\")))))))))))))))))))))))))))","v":true}]
[null,null,null,null,null,null,null,null,"lib1-5-1","שלחן","שלחן","lib1-5-4","lib1-5-5","שלחן","שלחן",null,null,null,null,"Skygazer","lib1-5-1",{"$f":"OR(AND(תכנה=Office_2010,'טבלת נתונים א'!B17=\"+\"),OR(AND(תכנה=Spss_19,'טבלת נתונים א'!C17=\"+\"),OR(AND(תכנה=Babylon,'טבלת נתונים א'!D17=\"+\"),,OR(AND(תכנה=unstable_aquarium,'טבלת נתונים א'!E17=\"+\"),OR(AND(תכנה=kidney,'טבלת נתונים א'!F17=\"+\"),OR(AND(תכנה=Mandelbrot_Set,'טבלת נתונים א'!G17=\"+\"),OR(AND(תכנה=particles,'טבלת נתונים א'!H17=\"+\"),OR(AND(תכנה=motion_simulator,'טבלת נתונים א'!I17=\"+\"),OR(AND(תכנה=comunication_powerpoint,'טבלת נתונים א'!J17=\"+\"),,OR(AND(תכנה=CHASHMALON,'טבלת נתונים א'!K17=\"+\"),OR(AND(תכנה=flowers,'טבלת נתונים א'!L17=\"+\"),OR(AND(תכנה=Action_potential,'טבלת נתונים א'!M17=\"+\"),OR(AND(תכנה=Db_lab,'טבלת נתונים א'!N17=\"+\"),OR(AND(תכנה=Populus_5.3,'טבלת נתונים א'!O17=\"+\"),OR(AND(תכנה=Post_syneptic,'טבלת נתונים א'!P17=\"+\"),OR(AND(תכנה=Eclipse,'טבלת נתונים א'!Q17=\"+\"),OR(AND(תכנה=Molecular_Biology,'טבלת נתונים א'!R17=\"+\"),OR(AND(תכנה=Skygazer,'טבלת נתונים א'!S17=\"+\"),OR(AND(תכנה=Tree_View,'טבלת נתונים א'!T17=\"+\"),OR(AND(תכנה=Xray,'טבלת נתונים א'!U17=\"+\"),OR(AND(תכנה=Google_Earth,'טבלת נתונים א'!V17=\"+\"),OR(AND(תכנה=Game_Maker,'טבלת נתונים א'!W17=\"+\"),OR(AND(תכנה=GreenFoot,'טבלת נתונים א'!X17=\"+\"),OR(AND(תכנה=CLC_Sequence_Viewer,'טבלת נתונים א'!Y17=\"+\"),OR(AND(תכנה=MEGA_4,'טבלת נתונים א'!Z17=\"+\"),OR(AND(תכנה=Chimera,'טבלת נתונים א'!AA17=\"+\")))))))))))))))))))))))))))","v":false}]
[null,null,"lib1-4-0","שלחן",null,null,null,null,null,null,null,null,null,null,null,null,null,null,null,"Tree View","lib1-5-4",{"$f":"OR(AND(תכנה=Office_2010,'טבלת נתונים א'!B20=\"+\"),OR(AND(תכנה=Spss_19,'טבלת נתונים א'!C20=\"+\"),OR(AND(תכנה=Babylon,'טבלת נתונים א'!D20=\"+\"),,OR(AND(תכנה=unstable_aquarium,'טבלת נתונים א'!E20=\"+\"),OR(AND(תכנה=kidney,'טבלת נתונים א'!F20=\"+\"),OR(AND(תכנה=Mandelbrot_Set,'טבלת נתונים א'!G20=\"+\"),OR(AND(תכנה=particles,'טבלת נתונים א'!H20=\"+\"),OR(AND(תכנה=motion_simulator,'טבלת נתונים א'!I20=\"+\"),OR(AND(תכנה=comunication_powerpoint,'טבלת נתונים א'!J20=\"+\"),,OR(AND(תכנה=CHASHMALON,'טבלת נתונים א'!K20=\"+\"),OR(AND(תכנה=flowers,'טבלת נתונים א'!L20=\"+\"),OR(AND(תכנה=Action_potential,'טבלת נתונים א'!M20=\"+\"),OR(AND(תכנה=Db_lab,'טבלת נתונים א'!N20=\"+\"),OR(AND(תכנה=Populus_5.3,'טבלת נתונים א'!O20=\"+\"),OR(AND(תכנה=Post_syneptic,'טבלת נתונים א'!P20=\"+\"),OR(AND(תכנה=Eclipse,'טבלת נתונים א'!Q20=\"+\"),OR(AND(תכנה=Molecular_Biology,'טבלת נתונים א'!R20=\"+\"),OR(AND(תכנה=Skygazer,'טבלת נתונים א'!S20=\"+\"),OR(AND(תכנה=Tree_View,'טבלת נתונים א'!T20=\"+\"),OR(AND(תכנה=Xray,'טבלת נתונים א'!U20=\"+\"),OR(AND(תכנה=Google_Earth,'טבלת נתונים א'!V20=\"+\"),OR(AND(תכנה=Game_Maker,'טבלת נתונים א'!W20=\"+\"),OR(AND(תכנה=GreenFoot,'טבלת נתונים א'!X20=\"+\"),OR(AND(תכנה=CLC_Sequence_Viewer,'טבלת נתונים א'!Y20=\"+\"),OR(AND(תכנה=MEGA_4,'טבלת נתונים א'!Z20=\"+\"),OR(AND(תכנה=Chimera,'טבלת נתונים א'!AA20=\"+\")))))))))))))))))))))))))))","v":false}]
[null,null,null,null,null,null,null,null,"lib1-6-1","שלחן","lib1-6-3","lib1-6-4","lib1-6-5","שלחן","שלחן",null,null,null,null,"Xray","lib1-5-5",{"$f":"OR(AND(תכנה=Office_2010,'טבלת נתונים א'!B21=\"+\"),OR(AND(תכנה=Spss_19,'טבלת נתונים א'!C21=\"+\"),OR(AND(תכנה=Babylon,'טבלת נתונים א'!D21=\"+\"),,OR(AND(תכנה=unstable_aquarium,'טבלת נתונים א'!E21=\"+\"),OR(AND(תכנה=kidney,'טבלת נתונים א'!F21=\"+\"),OR(AND(תכנה=Mandelbrot_Set,'טבלת נתונים א'!G21=\"+\"),OR(AND(תכנה=particles,'טבלת נתונים א'!H21=\"+\"),OR(AND(תכנה=motion_simulator,'טבלת נתונים א'!I21=\"+\"),OR(AND(תכנה=comunication_powerpoint,'טבלת נתונים א'!J21=\"+\"),,OR(AND(תכנה=CHASHMALON,'טבלת נתונים א'!K21=\"+\"),OR(AND(תכנה=flowers,'טבלת נתונים א'!L21=\"+\"),OR(AND(תכנה=Action_potential,'טבלת נתונים א'!M21=\"+\"),OR(AND(תכנה=Db_lab,'טבלת נתונים א'!N21=\"+\"),OR(AND(תכנה=Populus_5.3,'טבלת נתונים א'!O21=\"+\"),OR(AND(תכנה=Post_syneptic,'טבלת נתונים א'!P21=\"+\"),OR(AND(תכנה=Eclipse,'טבלת נתונים א'!Q21=\"+\"),OR(AND(תכנה=Molecular_Biology,'טבלת נתונים א'!R21=\"+\"),OR(AND(תכנה=Skygazer,'טבלת נתונים א'!S21=\"+\"),OR(AND(תכנה=Tree_View,'טבלת נתונים א'!T21=\"+\"),OR(AND(תכנה=Xray,'טבלת נתונים א'!U21=\"+\"),OR(AND(תכנה=Google_Earth,'טבלת נתונים א'!V21=\"+\"),OR(AND(תכנה=Game_Maker,'טבלת נתונים א'!W21=\"+\"),OR(AND(תכנה=GreenFoot,'טבלת נתונים א'!X21=\"+\"),OR(AND(תכנה=CLC_Sequence_Viewer,'טבלת נתונים א'!Y21=\"+\"),OR(AND(תכנה=MEGA_4,'טבלת נתונים א'!Z21=\"+\"),OR(AND(תכנה=Chimera,'טבלת נתונים א'!AA21=\"+\")))))))))))))))))))))))))))","v":false}]
[null,null,"lib1-5-0","שלחן",null,null,null,null,null,null,null,null,null,null,null,null,null,null,null,"Google Earth","lib1-6-0",{"$f":"OR(AND(תכנה=Office_2010,'טבלת נתונים א'!B22=\"+\"),OR(AND(תכנה=Spss_19,'טבלת נתונים א'!C22=\"+\"),OR(AND(תכנה=Babylon,'טבלת נתונים א'!D22=\"+\"),,OR(AND(תכנה=unstable_aquarium,'טבלת נתונים א'!E22=\"+\"),OR(AND(תכנה=kidney,'טבלת נתונים א'!F22=\"+\"),OR(AND(תכנה=Mandelbrot_Set,'טבלת נתונים א'!G22=\"+\"),OR(AND(תכנה=particles,'טבלת נתונים א'!H22=\"+\"),OR(AND(תכנה=motion_simulator,'טבלת נתונים א'!I22=\"+\"),OR(AND(תכנה=comunication_powerpoint,'טבלת נתונים א'!J22=\"+\"),,OR(AND(תכנה=CHASHMALON,'טבלת נתונים א'!K22=\"+\"),OR(AND(תכנה=flowers,'טבלת נתונים א'!L22=\"+\"),OR(AND(תכנה=Action_potential,'טבלת נתונים א'!M22=\"+\"),OR(AND(תכנה=Db_lab,'טבלת נתונים א'!N22=\"+\"),OR(AND(תכנה=Populus_5.3,'טבלת נתונים א'!O22=\"+\"),OR(AND(תכנה=Post_syneptic,'טבלת נתונים א'!P22=\"+\"),OR(AND(תכנה=Eclipse,'טבלת נתונים א'!Q22=\"+\"),OR(AND(תכנה=Molecular_Biology,'טבלת נתונים א'!R22=\"+\"),OR(AND(תכנה=Skygazer,'טבלת נתונים א'!S22=\"+\"),OR(AND(תכנה=Tree_View,'טבלת נתונים א'!T22=\"+\"),OR(AND(תכנה=Xray,'טבלת נתונים א'!U22=\"+\"),OR(AND(תכנה=Google_Earth,'טבלת נתונים א'!V22=\"+\"),OR(AND(תכנה=Game_Maker,'טבלת נתונים א'!W22=\"+\"),OR(AND(תכנה=GreenFoot,'טבלת נתונים א'!X22=\"+\"),OR(AND(תכנה=CLC_Sequence_Viewer,'טבלת נתונים א'!Y22=\"+\"),OR(AND(תכנה=MEGA_4,'טבלת נתונים א'!Z22=\"+\"),OR(AND(תכנה=Chimera,'טבלת נתונים א'!AA22=\"+\")))))))))))))))))))))))))))","v":true}]
[null,null,null,null,null,null,null,null,"lib1-7-1","שלחן","שלחן","שלחן","מחשב רמי אמנות","שלחן","שלחן",null,null,null,null,"Game Maker","lib1-6-1",{"$f":"OR(AND(תכנה=Office_2010,'טבלת נתונים א'!B23=\"+\"),OR(AND(תכנה=Spss_19,'טבלת נתונים א'!C23=\"+\"),OR(AND(תכנה=Babylon,'טבלת נתונים א'!D23=\"+\"),,OR(AND(תכנה=unstable_aquarium,'טבלת נתונים א'!E23=\"+\"),OR(AND(תכנה=kidney,'טבלת נתונים א'!F23=\"+\"),OR(AND(תכנה=Mandelbrot_Set,'טבלת נתונים א'!G23=\"+\"),OR(AND(תכנה=particles,'טבלת נתונים א'!H23=\"+\"),OR(AND(תכנה=motion_simulator,'טבלת נתונים א'!I23=\"+\"),OR(AND(תכנה=comunication_powerpoint,'טבלת נתונים א'!J23=\"+\"),,OR(AND(תכנה=CHASHMALON,'טבלת נתונים א'!K23=\"+\"),OR(AND(תכנה=flowers,'טבלת נתונים א'!L23=\"+\"),OR(AND(תכנה=Action_potential,'טבלת נתונים א'!M23=\"+\"),OR(AND(תכנה=Db_lab,'טבלת נתונים א'!N23=\"+\"),OR(AND(תכנה=Populus_5.3,'טבלת נתונים א'!O23=\"+\"),OR(AND(תכנה=Post_syneptic,'טבלת נתונים א'!P23=\"+\"),OR(AND(תכנה=Eclipse,'טבלת נתונים א'!Q23=\"+\"),OR(AND(תכנה=Molecular_Biology,'טבלת נתונים א'!R23=\"+\"),OR(AND(תכנה=Skygazer,'טבלת נתונים א'!S23=\"+\"),OR(AND(תכנה=Tree_View,'טבלת נתונים א'!T23=\"+\"),OR(AND(תכנה=Xray,'טבלת נתונים א'!U23=\"+\"),OR(AND(תכנה=Google_Earth,'טבלת נתונים א'!V23=\"+\"),OR(AND(תכנה=Game_Maker,'טבלת נתונים א'!W23=\"+\"),OR(AND(תכנה=GreenFoot,'טבלת נתונים א'!X23=\"+\"),OR(AND(תכנה=CLC_Sequence_Viewer,'טבלת נתונים א'!Y23=\"+\"),OR(AND(תכנה=MEGA_4,'טבלת נתונים א'!Z23=\"+\"),OR(AND(תכנה=Chimera,'טבלת נתונים א'!AA23=\"+\")))))))))))))))))))))))))))","v":false}]
[null,null,"lib1-6-0","שלחן",null,null,null,null,null,null,null,null,null,null,null,null,null,null,null,"Greenfoot","lib1-6-3",{"$f":"OR(AND(תכנה=Office_2010,'טבלת נתונים א'!B25=\"+\"),OR(AND(תכנה=Spss_19,'טבלת נתונים א'!C25=\"+\"),OR(AND(תכנה=Babylon,'טבלת נתונים א'!D25=\"+\"),OR(AND(תכנה=unstable_aquarium,'טבלת נתונים א'!E25=\"+\"),OR(AND(תכנה=kidney,'טבלת נתונים א'!F25=\"+\"),OR(AND(תכנה=Mandelbrot_Set,'טבלת נתונים א'!G25=\"+\"),OR(AND(תכנה=particles,'טבלת נתונים א'!H25=\"+\"),OR(AND(תכנה=motion_simulator,'טבלת נתונים א'!I25=\"+\"),OR(AND(תכנה=comunication_powerpoint,'טבלת נתונים א'!J25=\"+\"),OR(AND(תכנה=CHASHMALON,'טבלת נתונים א'!K25=\"+\"),OR(AND(תכנה=flowers,'טבלת נתונים א'!L25=\"+\"),OR(AND(תכנה=Action_potential,'טבלת נתונים א'!M25=\"+\"),OR(AND(תכנה=Db_lab,'טבלת נתונים א'!N25=\"+\"),OR(AND(תכנה=Populus_5.3,'טבלת נתונים א'!O25=\"+\"),OR(AND(תכנה=Post_syneptic,'טבלת נתונים א'!P25=\"+\"),OR(AND(תכנה=Eclipse,'טבלת נתונים א'!Q25=\"+\"),OR(AND(תכנה=Molecular_Biology,'טבלת נתונים א'!R25=\"+\"),OR(AND(תכנה=Skygazer,'טבלת נתונים א'!S25=\"+\"),OR(AND(תכנה=Tree_View,'טבלת נתונים א'!T25=\"+\"),OR(AND(תכנה=Xray,'טבלת נתונים א'!U25=\"+\"),OR(AND(תכנה=Google_Earth,'טבלת נתונים א'!V25=\"+\"),OR(AND(תכנה=Game_Maker,'טבלת נתונים א'!W25=\"+\"),OR(AND(תכנה=GreenFoot,'טבלת נתונים א'!X25=\"+\"),OR(AND(תכנה=CLC_Sequence_Viewer,'טבלת נתונים א'!Y25=\"+\"),OR(AND(תכנה=MEGA_4,'טבלת נתונים א'!Z25=\"+\"),OR(AND(תכנה=Chimera,'טבלת נתונים א'!AA25=\"+\")))))))))))))))))))))))))))","v":false}]
[null,null,null,null,null,null,null,null,"lib1-8-1","שלחן","שלחן","שלחן","lib1-8-5","שלחן","שלחן",null,null,null,null,"CLC Sequence Viewer","lib1-6-4",{"$f":"OR(AND(תכנה=Office_2010,'טבלת נתונים א'!B26=\"+\"),OR(AND(תכנה=Spss_19,'טבלת נתונים א'!C26=\"+\"),OR(AND(תכנה=Babylon,'טבלת נתונים א'!D26=\"+\"),OR(AND(תכנה=unstable_aquarium,'טבלת נתונים א'!E26=\"+\"),OR(AND(תכנה=kidney,'טבלת נתונים א'!F26=\"+\"),OR(AND(תכנה=Mandelbrot_Set,'טבלת נתונים א'!G26=\"+\"),OR(AND(תכנה=particles,'טבלת נתונים א'!H26=\"+\"),OR(AND(תכנה=motion_simulator,'טבלת נתונים א'!I26=\"+\"),OR(AND(תכנה=comunication_powerpoint,'טבלת נתונים א'!J26=\"+\"),OR(AND(תכנה=CHASHMALON,'טבלת נתונים א'!K26=\"+\"),OR(AND(תכנה=flowers,'טבלת נתונים א'!L26=\"+\"),OR(AND(תכנה=Action_potential,'טבלת נתונים א'!M26=\"+\"),OR(AND(תכנה=Db_lab,'טבלת נתונים א'!N26=\"+\"),OR(AND(תכנה=Populus_5.3,'טבלת נתונים א'!O26=\"+\"),OR(AND(תכנה=Post_syneptic,'טבלת נתונים א'!P26=\"+\"),OR(AND(תכנה=Eclipse,'טבלת נתונים א'!Q26=\"+\"),OR(AND(תכנה=Molecular_Biology,'טבלת נתונים א'!R26=\"+\"),OR(AND(תכנה=Skygazer,'טבלת נתונים א'!S26=\"+\"),OR(AND(תכנה=Tree_View,'טבלת נתונים א'!T26=\"+\"),OR(AND(תכנה=Xray,'טבלת נתונים א'!U26=\"+\"),OR(AND(תכנה=Google_Earth,'טבלת נתונים א'!V26=\"+\"),OR(AND(תכנה=Game_Maker,'טבלת נתונים א'!W26=\"+\"),OR(AND(תכנה=GreenFoot,'טבלת נתונים א'!X26=\"+\"),OR(AND(תכנה=CLC_Sequence_Viewer,'טבלת נתונים א'!Y26=\"+\"),OR(AND(תכנה=MEGA_4,'טבלת נתונים א'!Z26=\"+\"),OR(AND(תכנה=Chimera,'טבלת נתונים א'!AA26=\"+\")))))))))))))))))))))))))))","v":false}]
[null,null,"lib1-7-0","שלחן",null,null,null,null,null,null,null,null,null,null,null,null,null,null,null,"MEGA 4","lib1-6-5",{"$f":"OR(AND(תכנה=Office_2010,'טבלת נתונים א'!B27=\"+\"),OR(AND(תכנה=Spss_19,'טבלת נתונים א'!C27=\"+\"),OR(AND(תכנה=Babylon,'טבלת נתונים א'!D27=\"+\"),OR(AND(תכנה=unstable_aquarium,'טבלת נתונים א'!E27=\"+\"),OR(AND(תכנה=kidney,'טבלת נתונים א'!F27=\"+\"),OR(AND(תכנה=Mandelbrot_Set,'טבלת נתונים א'!G27=\"+\"),OR(AND(תכנה=particles,'טבלת נתונים א'!H27=\"+\"),OR(AND(תכנה=motion_simulator,'טבלת נתונים א'!I27=\"+\"),OR(AND(תכנה=comunication_powerpoint,'טבלת נתונים א'!J27=\"+\"),OR(AND(תכנה=CHASHMALON,'טבלת נתונים א'!K27=\"+\"),OR(AND(תכנה=flowers,'טבלת נתונים א'!L27=\"+\"),OR(AND(תכנה=Action_potential,'טבלת נתונים א'!M27=\"+\"),OR(AND(תכנה=Db_lab,'טבלת נתונים א'!N27=\"+\"),OR(AND(תכנה=Populus_5.3,'טבלת נתונים א'!O27=\"+\"),OR(AND(תכנה=Post_syneptic,'טבלת נתונים א'!P27=\"+\"),OR(AND(תכנה=Eclipse,'טבלת נתונים א'!Q27=\"+\"),OR(AND(תכנה=Molecular_Biology,'טבלת נתונים א'!R27=\"+\"),OR(AND(תכנה=Skygazer,'טבלת נתונים א'!S27=\"+\"),OR(AND(תכנה=Tree_View,'טבלת נתונים א'!T27=\"+\"),OR(AND(תכנה=Xray,'טבלת נתונים א'!U27=\"+\"),OR(AND(תכנה=Google_Earth,'טבלת נתונים א'!V27=\"+\"),OR(AND(תכנה=Game_Maker,'טבלת נתונים א'!W27=\"+\"),OR(AND(תכנה=GreenFoot,'טבלת נתונים א'!X27=\"+\"),OR(AND(תכנה=CLC_Sequence_Viewer,'טבלת נתונים א'!Y27=\"+\"),OR(AND(תכנה=MEGA_4,'טבלת נתונים א'!Z27=\"+\"),OR(AND(תכנה=Chimera,'טבלת נתונים א'!AA27=\"+\")))))))))))))))))))))))))))","v":false}]
[null,null,null,null,null,null,null,null,null,null,null,null,"שלחן","שלחן","מכונה",null,null,null,null,"Chimera","lib1-7-0",{"$f":"OR(AND(תכנה=Office_2010,'טבלת נתונים א'!B28=\"+\"),OR(AND(תכנה=Spss_19,'טבלת נתונים א'!C28=\"+\"),OR(AND(תכנה=Babylon,'טבלת נתונים א'!D28=\"+\"),OR(AND(תכנה=unstable_aquarium,'טבלת נתונים א'!E28=\"+\"),OR(AND(תכנה=kidney,'טבלת נתונים א'!F28=\"+\"),OR(AND(תכנה=Mandelbrot_Set,'טבלת נתונים א'!G28=\"+\"),OR(AND(תכנה=particles,'טבלת נתונים א'!H28=\"+\"),OR(AND(תכנה=motion_simulator,'טבלת נתונים א'!I28=\"+\"),OR(AND(תכנה=comunication_powerpoint,'טבלת נתונים א'!J28=\"+\"),OR(AND(תכנה=CHASHMALON,'טבלת נתונים א'!K28=\"+\"),OR(AND(תכנה=flowers,'טבלת נתונים א'!L28=\"+\"),OR(AND(תכנה=Action_potential,'טבלת נתונים א'!M28=\"+\"),OR(AND(תכנה=Db_lab,'טבלת נתונים א'!N28=\"+\"),OR(AND(תכנה=Populus_5.3,'טבלת נתונים א'!O28=\"+\"),OR(AND(תכנה=Post_syneptic,'טבלת נתונים א'!P28=\"+\"),OR(AND(תכנה=Eclipse,'טבלת נתונים א'!Q28=\"+\"),OR(AND(תכנה=Molecular_Biology,'טבלת נתונים א'!R28=\"+\"),OR(AND(תכנה=Skygazer,'טבלת נתונים א'!S28=\"+\"),OR(AND(תכנה=Tree_View,'טבלת נתונים א'!T28=\"+\"),OR(AND(תכנה=Xray,'טבלת נתונים א'!U28=\"+\"),OR(AND(תכנה=Google_Earth,'טבלת נתונים א'!V28=\"+\"),OR(AND(תכנה=Game_Maker,'טבלת נתונים א'!W28=\"+\"),OR(AND(תכנה=GreenFoot,'טבלת נתונים א'!X28=\"+\"),OR(AND(תכנה=CLC_Sequence_Viewer,'טבלת נתונים א'!Y28=\"+\"),OR(AND(תכנה=MEGA_4,'טבלת נתונים א'!Z28=\"+\"),OR(AND(תכנה=Chimera,'טבלת נתונים א'!AA28=\"+\")))))))))))))))))))))))))))","v":false}]
[null,null,null,null,null,null,null,null,null,null,null,null,null,null,null,null,null,null,null,null,"lib1-7-1",{"$f":"OR(AND(תכנה=Office_2010,'טבלת נתונים א'!B29=\"+\"),OR(AND(תכנה=Spss_19,'טבלת נתונים א'!C29=\"+\"),OR(AND(תכנה=Babylon,'טבלת נתונים א'!D29=\"+\"),OR(AND(תכנה=unstable_aquarium,'טבלת נתונים א'!E29=\"+\"),OR(AND(תכנה=kidney,'טבלת נתונים א'!F29=\"+\"),OR(AND(תכנה=Mandelbrot_Set,'טבלת נתונים א'!G29=\"+\"),OR(AND(תכנה=particles,'טבלת נתונים א'!H29=\"+\"),OR(AND(תכנה=motion_simulator,'טבלת נתונים א'!I29=\"+\"),OR(AND(תכנה=comunication_powerpoint,'טבלת נתונים א'!J29=\"+\"),OR(AND(תכנה=CHASHMALON,'טבלת נתונים א'!K29=\"+\"),OR(AND(תכנה=flowers,'טבלת נתונים א'!L29=\"+\"),OR(AND(תכנה=Action_potential,'טבלת נתונים א'!M29=\"+\"),OR(AND(תכנה=Db_lab,'טבלת נתונים א'!N29=\"+\"),OR(AND(תכנה=Populus_5.3,'טבלת נתונים א'!O29=\"+\"),OR(AND(תכנה=Post_syneptic,'טבלת נתונים א'!P29=\"+\"),OR(AND(תכנה=Eclipse,'טבלת נתונים א'!Q29=\"+\"),OR(AND(תכנה=Molecular_Biology,'טבלת נתונים א'!R29=\"+\"),OR(AND(תכנה=Skygazer,'טבלת נתונים א'!S29=\"+\"),OR(AND(תכנה=Tree_View,'טבלת נתונים א'!T29=\"+\"),OR(AND(תכנה=Xray,'טבלת נתונים א'!U29=\"+\"),OR(AND(תכנה=Google_Earth,'טבלת נתונים א'!V29=\"+\"),OR(AND(תכנה=Game_Maker,'טבלת נתונים א'!W29=\"+\"),OR(AND(תכנה=GreenFoot,'טבלת נתונים א'!X29=\"+\"),OR(AND(תכנה=CLC_Sequence_Viewer,'טבלת נתונים א'!Y29=\"+\"),OR(AND(תכנה=MEGA_4,'טבלת נתונים א'!Z29=\"+\"),OR(AND(תכנה=Chimera,'טבלת נתונים א'!AA29=\"+\")))))))))))))))))))))))))))","v":false}]
[null,null,null,null,null,null,null,null,null,null,null,null,"שלחן","שלחן","שלחן",null,null,null,null,null,"lib1-8-1",{"$f":"OR(AND(תכנה=Office_2010,'טבלת נתונים א'!B32=\"+\"),OR(AND(תכנה=Spss_19,'טבלת נתונים א'!C32=\"+\"),OR(AND(תכנה=Babylon,'טבלת נתונים א'!D32=\"+\"),OR(AND(תכנה=unstable_aquarium,'טבלת נתונים א'!E32=\"+\"),OR(AND(תכנה=kidney,'טבלת נתונים א'!F32=\"+\"),OR(AND(תכנה=Mandelbrot_Set,'טבלת נתונים א'!G32=\"+\"),OR(AND(תכנה=particles,'טבלת נתונים א'!H32=\"+\"),OR(AND(תכנה=motion_simulator,'טבלת נתונים א'!I32=\"+\"),OR(AND(תכנה=comunication_powerpoint,'טבלת נתונים א'!J32=\"+\"),OR(AND(תכנה=CHASHMALON,'טבלת נתונים א'!K32=\"+\"),OR(AND(תכנה=flowers,'טבלת נתונים א'!L32=\"+\"),OR(AND(תכנה=Action_potential,'טבלת נתונים א'!M32=\"+\"),OR(AND(תכנה=Db_lab,'טבלת נתונים א'!N32=\"+\"),OR(AND(תכנה=Populus_5.3,'טבלת נתונים א'!O32=\"+\"),OR(AND(תכנה=Post_syneptic,'טבלת נתונים א'!P32=\"+\"),OR(AND(תכנה=Eclipse,'טבלת נתונים א'!Q32=\"+\"),OR(AND(תכנה=Molecular_Biology,'טבלת נתונים א'!R32=\"+\"),OR(AND(תכנה=Skygazer,'טבלת נתונים א'!S32=\"+\"),OR(AND(תכנה=Tree_View,'טבלת נתונים א'!T32=\"+\"),OR(AND(תכנה=Xray,'טבלת נתונים א'!U32=\"+\"),OR(AND(תכנה=Google_Earth,'טבלת נתונים א'!V32=\"+\"),OR(AND(תכנה=Game_Maker,'טבלת נתונים א'!W32=\"+\"),OR(AND(תכנה=GreenFoot,'טבלת נתונים א'!X32=\"+\"),OR(AND(תכנה=CLC_Sequence_Viewer,'טבלת נתונים א'!Y32=\"+\"),OR(AND(תכנה=MEGA_4,'טבלת נתונים א'!Z32=\"+\"),OR(AND(תכנה=Chimera,'טבלת נתונים א'!AA32=\"+\")))))))))))))))))))))))))))","v":false}]
[null,null,null,null,null,null,null,null,null,null,null,null,null,null,null,null,null,null,null,null,"lib1-8-5",{"$f":"OR(AND(תכנה=Office_2010,'טבלת נתונים א'!B34=\"+\"),OR(AND(תכנה=Spss_19,'טבלת נתונים א'!C34=\"+\"),OR(AND(תכנה=Babylon,'טבלת נתונים א'!D34=\"+\"),OR(AND(תכנה=unstable_aquarium,'טבלת נתונים א'!E34=\"+\"),OR(AND(תכנה=kidney,'טבלת נתונים א'!F34=\"+\"),OR(AND(תכנה=Mandelbrot_Set,'טבלת נתונים א'!G34=\"+\"),OR(AND(תכנה=particles,'טבלת נתונים א'!H34=\"+\"),OR(AND(תכנה=motion_simulator,'טבלת נתונים א'!I34=\"+\"),OR(AND(תכנה=comunication_powerpoint,'טבלת נתונים א'!J34=\"+\"),OR(AND(תכנה=CHASHMALON,'טבלת נתונים א'!K34=\"+\"),OR(AND(תכנה=flowers,'טבלת נתונים א'!L34=\"+\"),OR(AND(תכנה=Action_potential,'טבלת נתונים א'!M34=\"+\"),OR(AND(תכנה=Db_lab,'טבלת נתונים א'!N34=\"+\"),OR(AND(תכנה=Populus_5.3,'טבלת נתונים א'!O34=\"+\"),OR(AND(תכנה=Post_syneptic,'טבלת נתונים א'!P34=\"+\"),OR(AND(תכנה=Eclipse,'טבלת נתונים א'!Q34=\"+\"),OR(AND(תכנה=Molecular_Biology,'טבלת נתונים א'!R34=\"+\"),OR(AND(תכנה=Skygazer,'טבלת נתונים א'!S34=\"+\"),OR(AND(תכנה=Tree_View,'טבלת נתונים א'!T34=\"+\"),OR(AND(תכנה=Xray,'טבלת נתונים א'!U34=\"+\"),OR(AND(תכנה=Google_Earth,'טבלת נתונים א'!V34=\"+\"),OR(AND(תכנה=Game_Maker,'טבלת נתונים א'!W34=\"+\"),OR(AND(תכנה=GreenFoot,'טבלת נתונים א'!X34=\"+\"),OR(AND(תכנה=CLC_Sequence_Viewer,'טבלת נתונים א'!Y34=\"+\"),OR(AND(תכנה=MEGA_4,'טבלת נתונים א'!Z34=\"+\"),OR(AND(תכנה=Chimera,'טבלת נתונים א'!AA34=\"+\")))))))))))))))))))))))))))","v":false}]
[null,null,null,null,null,null,null,null,null,null,null,null,"שלחן","שלחן","שלחן",null,null,null,null,null,"lib1-9-1",{"$f":"OR(AND(תכנה=Office_2010,'טבלת נתונים א'!B35=\"+\"),OR(AND(תכנה=Spss_19,'טבלת נתונים א'!C35=\"+\"),OR(AND(תכנה=Babylon,'טבלת נתונים א'!D35=\"+\"),OR(AND(תכנה=unstable_aquarium,'טבלת נתונים א'!E35=\"+\"),OR(AND(תכנה=kidney,'טבלת נתונים א'!F35=\"+\"),OR(AND(תכנה=Mandelbrot_Set,'טבלת נתונים א'!G35=\"+\"),OR(AND(תכנה=particles,'טבלת נתונים א'!H35=\"+\"),OR(AND(תכנה=motion_simulator,'טבלת נתונים א'!I35=\"+\"),OR(AND(תכנה=comunication_powerpoint,'טבלת נתונים א'!J35=\"+\"),OR(AND(תכנה=CHASHMALON,'טבלת נתונים א'!K35=\"+\"),OR(AND(תכנה=flowers,'טבלת נתונים א'!L35=\"+\"),OR(AND(תכנה=Action_potential,'טבלת נתונים א'!M35=\"+\"),OR(AND(תכנה=Db_lab,'טבלת נתונים א'!N35=\"+\"),OR(AND(תכנה=Populus_5.3,'טבלת נתונים א'!O35=\"+\"),OR(AND(תכנה=Post_syneptic,'טבלת נתונים א'!P35=\"+\"),OR(AND(תכנה=Eclipse,'טבלת נתונים א'!Q35=\"+\"),OR(AND(תכנה=Molecular_Biology,'טבלת נתונים א'!R35=\"+\"),OR(AND(תכנה=Skygazer,'טבלת נתונים א'!S35=\"+\"),OR(AND(תכנה=Tree_View,'טבלת נתונים א'!T35=\"+\"),OR(AND(תכנה=Xray,'טבלת נתונים א'!U35=\"+\"),OR(AND(תכנה=Google_Earth,'טבלת נתונים א'!V35=\"+\"),OR(AND(תכנה=Game_Maker,'טבלת נתונים א'!W35=\"+\"),OR(AND(תכנה=GreenFoot,'טבלת נתונים א'!X35=\"+\"),OR(AND(תכנה=CLC_Sequence_Viewer,'טבלת נתונים א'!Y35=\"+\"),OR(AND(תכנה=MEGA_4,'טבלת נתונים א'!Z35=\"+\"),OR(AND(תכנה=Chimera,'טבלת נתונים א'!AA35=\"+\")))))))))))))))))))))))))))","v":false}]
[null,null,null,null,null,null,null,null,null,null,null,null,null,null,null,null,null,null,null,null,"lib1-9-2",{"$f":"OR(AND(תכנה=Office_2010,'טבלת נתונים א'!B36=\"+\"),OR(AND(תכנה=Spss_19,'טבלת נתונים א'!C36=\"+\"),OR(AND(תכנה=Babylon,'טבלת נתונים א'!D36=\"+\"),OR(AND(תכנה=unstable_aquarium,'טבלת נתונים א'!E36=\"+\"),OR(AND(תכנה=kidney,'טבלת נתונים א'!F36=\"+\"),OR(AND(תכנה=Mandelbrot_Set,'טבלת נתונים א'!G36=\"+\"),OR(AND(תכנה=particles,'טבלת נתונים א'!H36=\"+\"),OR(AND(תכנה=motion_simulator,'טבלת נתונים א'!I36=\"+\"),OR(AND(תכנה=comunication_powerpoint,'טבלת נתונים א'!J36=\"+\"),OR(AND(תכנה=CHASHMALON,'טבלת נתונים א'!K36=\"+\"),OR(AND(תכנה=flowers,'טבלת נתונים א'!L36=\"+\"),OR(AND(תכנה=Action_potential,'טבלת נתונים א'!M36=\"+\"),OR(AND(תכנה=Db_lab,'טבלת נתונים א'!N36=\"+\"),OR(AND(תכנה=Populus_5.3,'טבלת נתונים א'!O36=\"+\"),OR(AND(תכנה=Post_syneptic,'טבלת נתונים א'!P36=\"+\"),OR(AND(תכנה=Eclipse,'טבלת נתונים א'!Q36=\"+\"),OR(AND(תכנה=Molecular_Biology,'טבלת נתונים א'!R36=\"+\"),OR(AND(תכנה=Skygazer,'טבלת נתונים א'!S36=\"+\"),OR(AND(תכנה=Tree_View,'טבלת נתונים א'!T36=\"+\"),OR(AND(תכנה=Xray,'טבלת נתונים א'!U36=\"+\"),OR(AND(תכנה=Google_Earth,'טבלת נתונים א'!V36=\"+\"),OR(AND(תכנה=Game_Maker,'טבלת נתונים א'!W36=\"+\"),OR(AND(תכנה=GreenFoot,'טבלת נתונים א'!X36=\"+\"),OR(AND(תכנה=CLC_Sequence_Viewer,'טבלת נתונים א'!Y36=\"+\"),OR(AND(תכנה=MEGA_4,'טבלת נתונים א'!Z36=\"+\"),OR(AND(תכנה=Chimera,'טבלת נתונים א'!AA36=\"+\")))))))))))))))))))))))))))","v":false}]
[null,null,null,null,null,null,null,null,null,null,null,null,"שלחן","שלחן","שלחן",null,null,null,null,null,"lib1-10-1",{"$f":"OR(AND(תכנה=Office_2010,'טבלת נתונים א'!B37=\"+\"),OR(AND(תכנה=Spss_19,'טבלת נתונים א'!C37=\"+\"),OR(AND(תכנה=Babylon,'טבלת נתונים א'!D37=\"+\"),OR(AND(תכנה=unstable_aquarium,'טבלת נתונים א'!E37=\"+\"),OR(AND(תכנה=kidney,'טבלת נתונים א'!F37=\"+\"),OR(AND(תכנה=Mandelbrot_Set,'טבלת נתונים א'!G37=\"+\"),OR(AND(תכנה=particles,'טבלת נתונים א'!H37=\"+\"),OR(AND(תכנה=motion_simulator,'טבלת נתונים א'!I37=\"+\"),OR(AND(תכנה=comunication_powerpoint,'טבלת נתונים א'!J37=\"+\"),OR(AND(תכנה=CHASHMALON,'טבלת נתונים א'!K37=\"+\"),OR(AND(תכנה=flowers,'טבלת נתונים א'!L37=\"+\"),OR(AND(תכנה=Action_potential,'טבלת נתונים א'!M37=\"+\"),OR(AND(תכנה=Db_lab,'טבלת נתונים א'!N37=\"+\"),OR(AND(תכנה=Populus_5.3,'טבלת נתונים א'!O37=\"+\"),OR(AND(תכנה=Post_syneptic,'טבלת נתונים א'!P37=\"+\"),OR(AND(תכנה=Eclipse,'טבלת נתונים א'!Q37=\"+\"),OR(AND(תכנה=Molecular_Biology,'טבלת נתונים א'!R37=\"+\"),OR(AND(תכנה=Skygazer,'טבלת נתונים א'!S37=\"+\"),OR(AND(תכנה=Tree_View,'טבלת נתונים א'!T37=\"+\"),OR(AND(תכנה=Xray,'טבלת נתונים א'!U37=\"+\"),OR(AND(תכנה=Google_Earth,'טבלת נתונים א'!V37=\"+\"),OR(AND(תכנה=Game_Maker,'טבלת נתונים א'!W37=\"+\"),OR(AND(תכנה=GreenFoot,'טבלת נתונים א'!X37=\"+\"),OR(AND(תכנה=CLC_Sequence_Viewer,'טבלת נתונים א'!Y37=\"+\"),OR(AND(תכנה=MEGA_4,'טבלת נתונים א'!Z37=\"+\"),OR(AND(תכנה=Chimera,'טבלת נתונים א'!AA37=\"+\")))))))))))))))))))))))))))","v":false}]
[null,null,null,null,null,null,null,null,null,null,null,null,null,null,null,null,null,null,null,null,"lib1-10-2",{"$f":"OR(AND(תכנה=Office_2010,'טבלת נתונים א'!B38=\"+\"),OR(AND(תכנה=Spss_19,'טבלת נתונים א'!C38=\"+\"),OR(AND(תכנה=Babylon,'טבלת נתונים א'!D38=\"+\"),OR(AND(תכנה=unstable_aquarium,'טבלת נתונים א'!E38=\"+\"),OR(AND(תכנה=kidney,'טבלת נתונים א'!F38=\"+\"),OR(AND(תכנה=Mandelbrot_Set,'טבלת נתונים א'!G38=\"+\"),OR(AND(תכנה=particles,'טבלת נתונים א'!H38=\"+\"),OR(AND(תכנה=motion_simulator,'טבלת נתונים א'!I38=\"+\"),OR(AND(תכנה=comunication_powerpoint,'טבלת נתונים א'!J38=\"+\"),OR(AND(תכנה=CHASHMALON,'טבלת נתונים א'!K38=\"+\"),OR(AND(תכנה=flowers,'טבלת נתונים א'!L38=\"+\"),OR(AND(תכנה=Action_potential,'טבלת נתונים א'!M38=\"+\"),OR(AND(תכנה=Db_lab,'טבלת נתונים א'!N38=\"+\"),OR(AND(תכנה=Populus_5.3,'טבלת נתונים א'!O38=\"+\"),OR(AND(תכנה=Post_syneptic,'טבלת נתונים א'!P38=\"+\"),OR(AND(תכנה=Eclipse,'טבלת נתונים א'!Q38=\"+\"),OR(AND(תכנה=Molecular_Biology,'טבלת נתונים א'!R38=\"+\"),OR(AND(תכנה=Skygazer,'טבלת נתונים א'!S38=\"+\"),OR(AND(תכנה=Tree_View,'טבלת נתונים א'!T38=\"+\"),OR(AND(תכנה=Xray,'טבלת נתונים א'!U38=\"+\"),OR(AND(תכנה=Google_Earth,'טבלת נתונים א'!V38=\"+\"),OR(AND(תכנה=Game_Maker,'טבלת נתונים א'!W38=\"+\"),OR(AND(תכנה=GreenFoot,'טבלת נתונים א'!X38=\"+\"),OR(AND(תכנה=CLC_Sequence_Viewer,'טבלת נתונים א'!Y38=\"+\"),OR(AND(תכנה=MEGA_4,'טבלת נתונים א'!Z38=\"+\"),OR(AND(תכנה=Chimera,'טבלת נתונים א'!AA38=\"+\")))))))))))))))))))))))))))","v":false}]
[null,null,null,null,null,null,null,null,null,null,"מחשב חיפוש מהיר",null,null,null,null,null,null,null,null,null,"lib1-11-1",{"$f":"OR(AND(תכנה=Office_2010,'טבלת נתונים א'!B39=\"+\"),OR(AND(תכנה=Spss_19,'טבלת נתונים א'!C39=\"+\"),OR(AND(תכנה=Babylon,'טבלת נתונים א'!D39=\"+\"),OR(AND(תכנה=unstable_aquarium,'טבלת נתונים א'!E39=\"+\"),OR(AND(תכנה=kidney,'טבלת נתונים א'!F39=\"+\"),OR(AND(תכנה=Mandelbrot_Set,'טבלת נתונים א'!G39=\"+\"),OR(AND(תכנה=particles,'טבלת נתונים א'!H39=\"+\"),OR(AND(תכנה=motion_simulator,'טבלת נתונים א'!I39=\"+\"),OR(AND(תכנה=comunication_powerpoint,'טבלת נתונים א'!J39=\"+\"),OR(AND(תכנה=CHASHMALON,'טבלת נתונים א'!K39=\"+\"),OR(AND(תכנה=flowers,'טבלת נתונים א'!L39=\"+\"),OR(AND(תכנה=Action_potential,'טבלת נתונים א'!M39=\"+\"),OR(AND(תכנה=Db_lab,'טבלת נתונים א'!N39=\"+\"),OR(AND(תכנה=Populus_5.3,'טבלת נתונים א'!O39=\"+\"),OR(AND(תכנה=Post_syneptic,'טבלת נתונים א'!P39=\"+\"),OR(AND(תכנה=Eclipse,'טבלת נתונים א'!Q39=\"+\"),OR(AND(תכנה=Molecular_Biology,'טבלת נתונים א'!R39=\"+\"),OR(AND(תכנה=Skygazer,'טבלת נתונים א'!S39=\"+\"),OR(AND(תכנה=Tree_View,'טבלת נתונים א'!T39=\"+\"),OR(AND(תכנה=Xray,'טבלת נתונים א'!U39=\"+\"),OR(AND(תכנה=Google_Earth,'טבלת נתונים א'!V39=\"+\"),OR(AND(תכנה=Game_Maker,'טבלת נתונים א'!W39=\"+\"),OR(AND(תכנה=GreenFoot,'טבלת נתונים א'!X39=\"+\"),OR(AND(תכנה=CLC_Sequence_Viewer,'טבלת נתונים א'!Y39=\"+\"),OR(AND(תכנה=MEGA_4,'טבלת נתונים א'!Z39=\"+\"),OR(AND(תכנה=Chimera,'טבלת נתונים א'!AA39=\"+\")))))))))))))))))))))))))))","v":false}]
[null,null,null,null,null,null,null,null,null,null,null,null,null,null,null,null,null,null,null,null,"lib1-11-2",{"$f":"OR(AND(תכנה=Office_2010,'טבלת נתונים א'!B40=\"+\"),OR(AND(תכנה=Spss_19,'טבלת נתונים א'!C40=\"+\"),OR(AND(תכנה=Babylon,'טבלת נתונים א'!D40=\"+\"),OR(AND(תכנה=unstable_aquarium,'טבלת נתונים א'!E40=\"+\"),OR(AND(תכנה=kidney,'טבלת נתונים א'!F40=\"+\"),OR(AND(תכנה=Mandelbrot_Set,'טבלת נתונים א'!G40=\"+\"),OR(AND(תכנה=particles,'טבלת נתונים א'!H40=\"+\"),OR(AND(תכנה=motion_simulator,'טבלת נתונים א'!I40=\"+\"),OR(AND(תכנה=comunication_powerpoint,'טבלת נתונים א'!J40=\"+\"),OR(AND(תכנה=CHASHMALON,'טבלת נתונים א'!K40=\"+\"),OR(AND(תכנה=flowers,'טבלת נתונים א'!L40=\"+\"),OR(AND(תכנה=Action_potential,'טבלת נתונים א'!M40=\"+\"),OR(AND(תכנה=Db_lab,'טבלת נתונים א'!N40=\"+\"),OR(AND(תכנה=Populus_5.3,'טבלת נתונים א'!O40=\"+\"),OR(AND(תכנה=Post_syneptic,'טבלת נתונים א'!P40=\"+\"),OR(AND(תכנה=Eclipse,'טבלת נתונים א'!Q40=\"+\"),OR(AND(תכנה=Molecular_Biology,'טבלת נתונים א'!R40=\"+\"),OR(AND(תכנה=Skygazer,'טבלת נתונים א'!S40=\"+\"),OR(AND(תכנה=Tree_View,'טבלת נתונים א'!T40=\"+\"),OR(AND(תכנה=Xray,'טבלת נתונים א'!U40=\"+\"),OR(AND(תכנה=Google_Earth,'טבלת נתונים א'!V40=\"+\"),OR(AND(תכנה=Game_Maker,'טבלת נתונים א'!W40=\"+\"),OR(AND(תכנה=GreenFoot,'טבלת נתונים א'!X40=\"+\"),OR(AND(תכנה=CLC_Sequence_Viewer,'טבלת נתונים א'!Y40=\"+\"),OR(AND(תכנה=MEGA_4,'טבלת נתונים א'!Z40=\"+\"),OR(AND(תכנה=Chimera,'טבלת נתונים א'!AA40=\"+\")))))))))))))))))))))))))))","v":false}]
["האגף הדרומי",null,"lib1_9_1","lib1-9-2",null,null,null,null,null,"מחלקת השאלה ומידע",null,null,null,"הסבר קצר"]
[null,null,null,null,null,null,null,null,null,null,null,null,null,{"$f":"INDEX(W49:W68,S2)","v":"תכנה ללימוד ביולוגיה של אוכלוסיות, אקולוגיה התפתחותית, ודינאמיקה של אפידמיה."}]
[null,null,"lib1-10-1","lib1-10-2"]
[]
[null,null,"lib1-11-1","lib1-11-2",null,null,null,null,null,"התוכנה המבוקשת נמצאת במחשב"]
[]
[null,null,"שלחן","שלחן",null,null,null,null,null,"התוכנה המבוקשת אינה נמצאת במחשב"]
[]
[null,null,"שלחן","שלחן"]
[]
[null,null,"שלחן","שלחן"]
[]
[null,null,"שלחן","שלחן"]
[]
[null,null,"שלחן","שלחן"]
[]
[]
[]
[null,null,null,null,null,null,null,null,null,null,null,null,null,null,null,null,null,null,null,null,null,null,"קב' תוכנות למשרד הממוחשב כגון: Word; PowerPoint; Excel..ועוד"]
[null,null,null,null,null,null,null,null,null,null,null,null,null,null,null,null,null,null,null,null,null,null,"עיבוד סטטיסטי של נתונים"]
[null,null,null,null,null,null,null,null,null,null,null,null,null,null,null,null,null,null,null,null,null,null,"מצגת של האונ' הפתוחה, בנושא DNA, RNA וסינתזת חלבונים"]
[null,null,null,null,null,null,null,null,null,null,null,null,null,null,null,null,null,null,null,null,null,null,"מצגת של האונ' הפתוחה, על מבנה הכליה ותפקודיה"]
[null,null,null,null,null,null,null,null,null,null,null,null,null,null,null,null,null,null,null,null,null,null,"יישום בתחום גיאומטריה פרקטלית"]
[null,null,null,null,null,null,null,null,null,null,null,null,null,null,null,null,null,null,null,null,null,null,"סימולטור לתנועת מטוטלות צמודות. המשתמש יכול לשנות נתונים פיזיקאליים."]
[null,null,null,null,null,null,null,null,null,null,null,null,null,null,null,null,null,null,null,null,null,null,"יישום לחט\"ב בנושא רכיבים אלקטרוניים ובניית מעגלים פשוטים"]
[null,null,null,null,null,null,null,null,null,null,null,null,null,null,null,null,null,null,null,null,null,null,"סימולציה גרפית של תגובה חשמלית של עצב בהתאמה לנתוני גירוי חשמלי"]
[null,null,null,null,null,null,null,null,null,null,null,null,null,null,null,null,null,null,null,null,null,null,"תכנה ללימוד ביולוגיה של אוכלוסיות, אקולוגיה התפתחותית, ודינאמיקה של אפידמיה."]
[null,null,null,null,null,null,null,null,null,null,null,null,null,null,null,null,null,null,null,null,null,null,"סימולציה גרפית של תגובת ממבראנה ביולוגית, בהתאמה לנתוני גירוי חשמלי"]
[null,null,null,null,null,null,null,null,null,null,null,null,null,null,null,null,null,null,null,null,null,null,"עורך גראפי בשפת Java לדפדפני אינטרנט"]
[null,null,null,null,null,null,null,null,null,null,null,null,null,null,null,null,null,null,null,null,null,null,"תצפית על השמים מכל מקום בכדור הארץ או במערכת השמש, בטווח זמן של 10,000 שנים מן ההווה. אנימציות אינטראקטיביות להדגמת מושגים אסטרונומיים בסיסיים כמו ליקויי חמה, עונות השנה ועוד."]
[null,null,null,null,null,null,null,null,null,null,null,null,null,null,null,null,null,null,null,null,null,null,"כלי לשרטוט תרשים של הירארכיות במבנה לוגי של עץ"]
[null,null,null,null,null,null,null,null,null,null,null,null,null,null,null,null,null,null,null,null,null,null,"סימולציה גרפית של כל חוקי מדע האופטיקה, בהתאם לנתונים שמכניס המשתמש"]
[null,null,null,null,null,null,null,null,null,null,null,null,null,null,null,null,null,null,null,null,null,null,"מציג תמונות לוויין, מפות, פני קרקע, מבנים 3D, נקיקי אוקיינוסים וכיו\"ב, בזויות ורזולוציות שונות."]
[null,null,null,null,null,null,null,null,null,null,null,null,null,null,null,null,null,null,null,null,null,null,"יצירת משחקי מחשב באנימציה"]
[null,null,null,null,null,null,null,null,null,null,null,null,null,null,null,null,null,null,null,null,null,null,"יישום Java אינטראקטיבי למטרות חינוכיות .מאפשר פיתוח סימולציות ומשחקים אינטראקטיביים."]
[null,null,null,null,null,null,null,null,null,null,null,null,null,null,null,null,null,null,null,null,null,null,"קבלת נתונים ביו-אינפורמטיביים מחיישנים. ניהול הנתונים באופן גרפי"]
[null,null,null,null,null,null,null,null,null,null,null,null,null,null,null,null,null,null,null,null,null,null,"כלי משולב לניהול נתונים של רצפי חלבונים וחומצות גרעין מבוסס מסדי-נתונים אינטרנטיים, השוואה ל\"רצפי אבות\", ובדיקת השערות אבולוציוניות."]
[null,null,null,null,null,null,null,null,null,null,null,null,null,null,null,null,null,null,null,null,null,null," הדמיה אינטראקטיבית של מבנה מולקולארי ונתונים קשורים"]

{"sheet":"טבלת נתונים א","index":1,"n_rows":40,"n_cols":28,"rows_kept":40,"cut":false,"hidden":true,"merged":[]}
["28/11/2017","F2","F3","F4","F5","F6","F7","F8","F9","F10","F11","F12","F13","F14","F15","F16","F17","F18","F19","F20","F21","F22","F23","F24","F25","F26","F27","F28"]
["שם המחשב","Office 2016","Spss 24","Babylon","האקווריום הלא יציב","הכליה","הסט של מנדלברויט","חלקיקים","מדמה תנועה","מצגת תקשורת","חשמלון","פרחים","Action potential","Da Lab","Populus 5.3","Post-syneptic","Eclipse-Java","ביולוגיה מולקולארית","Skygazer","Tree View","Xray","Google Earth","Game Maker","Greenfoot","CLC Sequence Viewer","MEGA 4","Chimera"]
["lib1-2-1","+","+",null,null,null,null,null,"+",null,null,null,null,null,null,null,"+",null,null,"+",null,"+","+","+","+","+","+"]
["lib1-2-2",null,null,null,null,null,null,null,null,null,null,null,null,null,null,null,null,null,null,"+",null,"+","+","+","+","+","+"]
["lib1-3-1","+","+",null,null,null,null,null,"+",null,null,null,null,null,null,null,"+",null,null,"+",null,"+","+","+","+","+","+"]
["lib1-3-2","+","+",null,null,null,null,null,null,null,null,null,null,null,null,null,"+",null,null,"+",null,"+",null,null,null,"+","+"]
["lib1-3-3"]
["lib1-3-4","+","+",null,null,null,null,null,null,null,null,null,null,null,null,null,"+",null,null,"+",null,"+","+","+","+","+","+"]
["lib1-3-5","+","+",null,null,null,null,null,null,null,null,null,null,null,null,null,"+",null,null,"+",null,"+","+","+","+","+","+"]
["lib1-4-0","+","+",null,null,null,null,null,null,null,null,null,null,null,"+",null,"+",null,null,"+",null,"+","+","+","+","+","+"]
["lib1-4-1","+","+",null,null,null,null,null,"+",null,"+",null,null,null,null,null,"+",null,null,"+","+","+","+","+","+","+","+"]
["lib1-4-2","+","+",null,null,null,null,null,null,null,null,null,null,null,null,null,"+",null,null,"+",null,"+",null,null,null,"+","+"]
["lib1-4-3"]
["lib1-4-4","+","+",null,null,"+","+",null,null,null,null,null,"+",null,null,"+","+","+",null,"+",null,"+","+","+","+","+","+"]
["lib1-4-5","+","+",null,null,null,null,null,null,null,null,null,null,null,null,null,"+",null,"+","+",null,"+","+","+","+","+","+"]
["lib1-5-0","+","+",null,null,null,null,null,null,null,null,null,null,null,"+",null,"+",null,null,"+",null,"+","+","+","+","+","+"]
["lib1-5-1","+","+",null,null,"+","+",null,null,null,null,null,"+",null,null,"+","+","+",null,"+","+","+","+","+","+","+","+"]
["lib1-5-2"]
["lib1-5-3"]
["lib1-5-4","+","+",null,null,"+","+",null,null,null,null,null,"+",null,null,"+","+","+",null,"+",null,"+","+","+","+","+","+"]
["lib1-5-5","+","+",null,null,null,null,null,null,null,null,null,null,null,null,null,"+",null,"+","+",null,"+","+","+","+","+","+"]
["lib1-6-0","+","+",null,null,null,null,null,null,null,null,null,null,null,"+",null,"+",null,null,"+",null,"+","+","+","+","+","+"]
["lib1-6-1","+","+",null,null,null,null,null,null,null,null,null,null,null,null,null,"+",null,null,"+","+","+","+","+","+","+","+"]
["lib1-6-2"]
["lib1-6-3","+","+",null,null,null,null,null,null,null,null,null,null,null,null,null,"+",null,null,"+",null,"+","+","+","+","+","+"]
["lib1-6-4","+","+",null,null,null,null,null,null,null,null,null,null,null,null,null,"+",null,null,"+",null,"+","+","+","+","+","+"]
["lib1-6-5","+","+",null,null,null,null,null,null,null,null,null,null,null,null,null,"+",null,"+","+",null,"+","+","+","+","+","+"]
["lib1-7-0","+","+",null,null,null,null,null,null,null,null,null,null,null,null,null,"+",null,null,"+",null,"+","+","+","+","+","+"]
["lib1-7-1","+","+",null,null,null,null,null,null,null,"+",null,null,null,null,null,"+",null,null,"+",null,"+","+","+","+","+","+"]
["lib1-7-2"]
["lib1-7-3"]
["lib1-8-1","+","+",null,null,null,null,null,null,null,null,null,null,null,null,null,"+",null,null,"+",null,"+","+","+","+","+","+"]
["lib1-8-3","+","+",null,null,null,null,null,null,null,null,null,null,null,null,null,"+",null,null,"+",null,"+","+","+","+","+","+"]
["lib1-8-5","+","+",null,null,null,null,null,null,null,null,null,null,null,null,null,"+",null,null,"+",null,"+","+","+","+","+","+"]
["lib1-9-1","+","+",null,null,null,null,null,null,null,null,null,null,null,null,null,"+",null,null,"+",null,"+","+","+","+","+","+"]
["lib1-9-2","+","+",null,null,null,null,null,null,null,null,null,null,null,null,null,"+",null,null,"+",null,"+","+","+","+","+","+"]
["lib1-10-1","+","+",null,null,null,null,null,null,null,null,null,null,null,null,null,"+",null,null,"+",null,"+","+","+","+","+","+"]
["lib1-10-2","+","+",null,null,null,null,null,null,null,null,null,null,null,null,null,"+",null,null,"+",null,"+","+","+","+","+","+"]
["lib1-11-1","+","+",null,null,null,null,null,null,null,null,null,null,null,null,null,"+",null,null,"+",null,"+","+","+","+","+","+"]
["lib1-11-2","+","+",null,null,null,null,null,null,null,null,null,null,null,null,null,"+",null,null,"+",null,"+","+","+","+","+","+"]